[Event "*** Titled Tuesday Blitz"]
[Site "Chess.com"]
[Date "2018.11.06"]
[Round "10"]
[White "gmjlh"]
[Black "dhanushbharadwaj"]
[Result "1-0"]
[WhiteElo "2628"]
[BlackElo "2480"]
[TimeControl "180+2"]
[EndTime "15:17:19 PST"]
[Termination "gmjlh won by checkmate"]

1. d4 {[%clk 0:03:01.9]} 1... Nf6 {[%clk 0:03:00.7]} 2. c4 {[%clk 0:03:02.9]}
2... g6 {[%clk 0:02:59.6]} 3. g3 {[%clk 0:03:02.1]} 3... Bg7 {[%clk 0:03:00.2]}
4. Bg2 {[%clk 0:03:03.1]} 4... O-O {[%clk 0:03:01.2]} 5. Nc3 {[%clk 0:03:04.3]}
5... c5 {[%clk 0:03:01.5]} 6. dxc5 {[%clk 0:03:05.3]} 6... Na6 {[%clk
0:03:01.2]} 7. Nh3 {[%clk 0:03:04.8]} 7... Nxc5 {[%clk 0:03:00.2]} 8. O-O {[%clk
0:03:05.2]} 8... d6 {[%clk 0:03:01.4]} 9. Nf4 {[%clk 0:03:06]} 9... Rb8 {[%clk
0:03:00.9]} 10. h3 {[%clk 0:02:55.9]} 10... a6 {[%clk 0:03:00.8]} 11. Bd2 {[%clk
0:02:45.3]} 11... b5 {[%clk 0:03:01.4]} 12. cxb5 {[%clk 0:02:46.9]} 12... axb5
{[%clk 0:03:03.3]} 13. b4 {[%clk 0:02:48.5]} 13... Na6 {[%clk 0:02:59.5]} 14.
Rb1 {[%clk 0:02:44.6]} 14... e5 {[%clk 0:02:57.7]} 15. Nfd5 {[%clk 0:02:43.8]}
15... Nxd5 {[%clk 0:02:56.2]} 16. Nxd5 {[%clk 0:02:45.7]} 16... Be6 {[%clk
0:02:55.3]} 17. Rc1 {[%clk 0:02:39.7]} 17... Qd7 {[%clk 0:02:50.8]} 18. Kh2
{[%clk 0:02:40.1]} 18... Rfc8 {[%clk 0:02:51.5]} 19. Rxc8+ {[%clk 0:02:41.6]}
19... Rxc8 {[%clk 0:02:53.4]} 20. Nb6 {[%clk 0:02:42.6]} 20... Qc7 {[%clk
0:02:30.4]} 21. Nxc8 {[%clk 0:02:42.1]} 21... Qxc8 {[%clk 0:02:32.3]} 22. a4
{[%clk 0:02:40.5]} 22... Nc7 {[%clk 0:02:30]} 23. axb5 {[%clk 0:02:25.4]} 23...
Nxb5 {[%clk 0:02:31.9]} 24. Qc1 {[%clk 0:02:23.5]} 24... Qb8 {[%clk 0:02:29.8]}
25. e3 {[%clk 0:02:20.7]} 25... d5 {[%clk 0:02:29.7]} 26. Qc6 {[%clk 0:02:16.3]}
26... e4 {[%clk 0:02:29.3]} 27. Rc1 {[%clk 0:02:10.5]} 27... Be5 {[%clk
0:02:28.9]} 28. Rc5 {[%clk 0:02:03.2]} 28... Nd6 {[%clk 0:02:23.9]} 29. Rxd5
{[%clk 0:01:59.4]} 29... Bxd5 {[%clk 0:02:22.2]} 30. Qxd5 {[%clk 0:02:01.3]}
30... Qb5 {[%clk 0:02:20.9]} 31. Qxb5 {[%clk 0:01:59.7]} 31... Nxb5 {[%clk
0:02:22.8]} 32. Bxe4 {[%clk 0:02:00.8]} 32... Bc3 {[%clk 0:02:17.1]} 33. Bxc3
{[%clk 0:02:00.5]} 33... Nxc3 {[%clk 0:02:19]} 34. Bd3 {[%clk 0:01:57.7]} 34...
Kf8 {[%clk 0:02:20.1]} 35. Kg2 {[%clk 0:01:58.6]} 35... Ke7 {[%clk 0:02:21.3]}
36. Bc4 {[%clk 0:01:57.8]} 36... f5 {[%clk 0:02:22.1]} 37. f4 {[%clk 0:01:55.7]}
37... Kd6 {[%clk 0:02:23.1]} 38. Bg8 {[%clk 0:01:51.8]} 38... h6 {[%clk
0:02:16.9]} 39. Kf3 {[%clk 0:01:48.2]} 39... g5 {[%clk 0:02:17.7]} 40. fxg5
{[%clk 0:01:44.3]} 40... hxg5 {[%clk 0:02:19.6]} 41. h4 {[%clk 0:01:44.8]} 41...
gxh4 {[%clk 0:02:20]} 42. gxh4 {[%clk 0:01:46.7]} 42... Ne4 {[%clk 0:02:20.2]}
43. Kf4 {[%clk 0:01:45.4]} 43... Nf6 {[%clk 0:02:20]} 44. Bc4 {[%clk 0:01:43.9]}
44... Ng4 {[%clk 0:02:20.6]} 45. Bd3 {[%clk 0:01:41.4]} 45... Nf2 {[%clk
0:02:20]} 46. Bxf5 {[%clk 0:01:41.7]} 46... Ke7 {[%clk 0:02:20.5]} 47. b5 {[%clk
0:01:42.1]} 47... Kf6 {[%clk 0:02:22.4]} 48. b6 {[%clk 0:01:42.6]} 48... Nh3+
{[%clk 0:02:22.2]} 49. Bxh3 {[%clk 0:01:43.2]} 49... Kg6 {[%clk 0:02:23.5]} 50.
b7 {[%clk 0:01:44.4]} 50... Kh5 {[%clk 0:02:25.4]} 51. b8=Q {[%clk 0:01:44.6]}
51... Kh6 {[%clk 0:02:27.3]} 52. Qf8+ {[%clk 0:01:41.3]} 52... Kg6 {[%clk
0:02:29.2]} 53. Bf5+ {[%clk 0:01:41.3]} 53... Kh5 {[%clk 0:02:30.1]} 54. Qh8#
{[%clk 0:01:42.8]} 1-0

[Event "*** Titled Tuesday Blitz"]
[Site "Chess.com"]
[Date "2018.11.06"]
[Round "10"]
[White "TheBigBadChessDad"]
[Black "wadsy27"]
[Result "0-1"]
[WhiteElo "2284"]
[BlackElo "2359"]
[TimeControl "180+2"]
[EndTime "15:17:22 PST"]
[Termination "wadsy27 won by resignation"]

1. d4 {[%clk 0:03:01.9]} 1... Nf6 {[%clk 0:02:58.3]} 2. Nf3 {[%clk 0:03:02.3]}
2... c5 {[%clk 0:03:00]} 3. c3 {[%clk 0:03:01.7]} 3... b6 {[%clk 0:02:58.3]} 4.
Bg5 {[%clk 0:03:00.3]} 4... Bb7 {[%clk 0:02:56.4]} 5. Bxf6 {[%clk 0:03:00.8]}
5... gxf6 {[%clk 0:02:57.5]} 6. g3 {[%clk 0:02:56.6]} 6... e6 {[%clk 0:02:57.9]}
7. Bg2 {[%clk 0:02:55.1]} 7... Bg7 {[%clk 0:02:56]} 8. O-O {[%clk 0:02:54.2]}
8... Qc7 {[%clk 0:02:57]} 9. Nh4 {[%clk 0:02:47.4]} 9... Bxg2 {[%clk 0:02:55.6]}
10. Kxg2 {[%clk 0:02:47.7]} 10... d5 {[%clk 0:02:50.4]} 11. e3 {[%clk
0:02:45.8]} 11... Nd7 {[%clk 0:02:50.8]} 12. f4 {[%clk 0:02:44.6]} 12... f5
{[%clk 0:02:50.8]} 13. a4 {[%clk 0:02:39.6]} 13... h5 {[%clk 0:02:49]} 14. Nd2
{[%clk 0:02:27.5]} 14... Bf6 {[%clk 0:02:46.2]} 15. Ndf3 {[%clk 0:02:20.8]}
15... Ke7 {[%clk 0:02:46.8]} 16. Kf2 {[%clk 0:02:12.3]} 16... c4 {[%clk
0:02:44.9]} 17. b3 {[%clk 0:02:10.2]} 17... cxb3 {[%clk 0:02:38.6]} 18. Qxb3
{[%clk 0:02:10.6]} 18... Rhc8 {[%clk 0:02:40.2]} 19. Rfc1 {[%clk 0:02:08.5]}
19... Qc4 {[%clk 0:02:32.6]} 20. Qa3+ {[%clk 0:02:02.3]} 20... Ke8 {[%clk
0:02:33.3]} 21. Nd2 {[%clk 0:02:01.5]} 21... Qd3 {[%clk 0:02:32.2]} 22. Nhf3
{[%clk 0:02:00.6]} 22... Be7 {[%clk 0:02:32.6]} 23. Qb3 {[%clk 0:01:55.1]} 23...
Nf6 {[%clk 0:02:23.4]} 24. Qb5+ {[%clk 0:01:25.7]} 24... Qxb5 {[%clk 0:02:23.7]}
25. axb5 {[%clk 0:01:26.7]} 25... Rc7 {[%clk 0:02:24.3]} 26. h4 {[%clk 0:00:46]}
26... Rac8 {[%clk 0:02:22.8]} 27. Nb1 {[%clk 0:00:40.2]} 27... Ne4+ {[%clk
0:02:16.6]} 28. Kg2 {[%clk 0:00:39.4]} 28... f6 {[%clk 0:02:02.4]} 29. Nfd2
{[%clk 0:00:39.8]} 29... Nxd2 {[%clk 0:01:55.5]} 30. Nxd2 {[%clk 0:00:40.3]}
30... Rxc3 {[%clk 0:01:57.1]} 31. Rxc3 {[%clk 0:00:39.8]} 31... Rxc3 {[%clk
0:01:59]} 32. Rxa7 {[%clk 0:00:35.2]} 32... Rc2 {[%clk 0:01:59.9]} 0-1

[Event "*** Titled Tuesday Blitz"]
[Site "Chess.com"]
[Date "2018.11.06"]
[Round "10"]
[White "TigranLPetrosyan"]
[Black "ShadowJolteon"]
[Result "0-1"]
[WhiteElo "2816"]
[BlackElo "2410"]
[TimeControl "180+2"]
[EndTime "15:17:29 PST"]
[Termination "ShadowJolteon won by resignation"]

1. e4 {[%clk 0:03:01.9]} 1... c6 {[%clk 0:02:59.9]} 2. Nc3 {[%clk 0:03:03.8]}
2... d5 {[%clk 0:03:01.8]} 3. d4 {[%clk 0:02:58]} 3... dxe4 {[%clk 0:03:02.6]}
4. Nxe4 {[%clk 0:02:59.9]} 4... Bf5 {[%clk 0:03:03.5]} 5. Ng3 {[%clk 0:03:01.1]}
5... Bg6 {[%clk 0:03:04.8]} 6. Nf3 {[%clk 0:03:03]} 6... Nd7 {[%clk 0:03:05.6]}
7. h4 {[%clk 0:02:59]} 7... h6 {[%clk 0:03:06.6]} 8. h5 {[%clk 0:03:00.5]} 8...
Bh7 {[%clk 0:03:07.2]} 9. Bd3 {[%clk 0:03:02.4]} 9... Bxd3 {[%clk 0:03:08.4]}
10. Qxd3 {[%clk 0:03:04.3]} 10... e6 {[%clk 0:03:10.3]} 11. Bf4 {[%clk
0:03:05.7]} 11... Qa5+ {[%clk 0:03:11]} 12. Bd2 {[%clk 0:03:06.1]} 12... Bb4
{[%clk 0:03:12.5]} 13. c3 {[%clk 0:03:07]} 13... Be7 {[%clk 0:03:11.2]} 14. Ne4
{[%clk 0:03:08.4]} 14... Ngf6 {[%clk 0:03:11]} 15. c4 {[%clk 0:03:08.6]} 15...
Qa6 {[%clk 0:03:09.9]} 16. Nxf6+ {[%clk 0:03:02.1]} 16... Nxf6 {[%clk
0:03:10.4]} 17. Qc2 {[%clk 0:02:58.3]} 17... b5 {[%clk 0:03:07.3]} 18. Ne5
{[%clk 0:02:52.9]} 18... O-O {[%clk 0:03:00.5]} 19. g4 {[%clk 0:02:48.4]} 19...
Rfd8 {[%clk 0:03:00.7]} 20. g5 {[%clk 0:02:46.5]} 20... hxg5 {[%clk 0:02:57.2]}
21. h6 {[%clk 0:02:44.5]} 21... Rxd4 {[%clk 0:02:45.7]} 22. hxg7 {[%clk
0:02:44.9]} 22... Re4+ {[%clk 0:02:44.1]} 23. Kf1 {[%clk 0:02:43.6]} 23... Kxg7
{[%clk 0:02:22.9]} 24. Bc3 {[%clk 0:02:29.3]} 24... b4 {[%clk 0:02:08.1]} 25. f3
{[%clk 0:02:10.1]} 25... Rxc4 {[%clk 0:01:57.5]} 26. Rh7+ {[%clk 0:01:57.9]}
26... Nxh7 {[%clk 0:01:39.1]} 27. Nxc4+ {[%clk 0:01:57.8]} 27... bxc3 {[%clk
0:01:40.1]} 28. b3 {[%clk 0:01:57.1]} 28... Bf6 {[%clk 0:01:36]} 29. Rd1 {[%clk
0:01:57.3]} 29... Rd8 {[%clk 0:01:35]} 30. Rxd8 {[%clk 0:01:55]} 30... Bxd8
{[%clk 0:01:36.9]} 31. Qxc3+ {[%clk 0:01:55.9]} 31... Bf6 {[%clk 0:01:38.2]} 32.
Qd2 {[%clk 0:01:57.3]} 32... Qb5 {[%clk 0:01:36.2]} 33. Kf2 {[%clk 0:01:49.8]}
33... Qd5 {[%clk 0:01:35.6]} 34. Qc2 {[%clk 0:01:44.1]} 34... Nf8 {[%clk
0:01:28.3]} 35. Kg3 {[%clk 0:01:45]} 35... Ng6 {[%clk 0:01:28.8]} 36. Ne3 {[%clk
0:01:41.5]} 36... Qe5+ {[%clk 0:01:23.8]} 37. Kf2 {[%clk 0:01:42.1]} 37... Qh2+
{[%clk 0:01:19.8]} 38. Ng2 {[%clk 0:01:43.4]} 38... Nf4 {[%clk 0:01:21.2]} 39.
Kf1 {[%clk 0:01:44]} 39... Qh1+ {[%clk 0:01:20.9]} 0-1

[Event "*** Titled Tuesday Blitz"]
[Site "Chess.com"]
[Date "2018.11.06"]
[Round "10"]
[White "GMSrinath"]
[Black "LastGladiator1"]
[Result "1-0"]
[WhiteElo "2815"]
[BlackElo "2635"]
[TimeControl "180+2"]
[EndTime "15:17:44 PST"]
[Termination "GMSrinath won by resignation"]

1. d4 {[%clk 0:03:01.9]} 1... Nf6 {[%clk 0:02:59.1]} 2. Bg5 {[%clk 0:03:03]}
2... e6 {[%clk 0:02:59.6]} 3. e4 {[%clk 0:03:03.1]} 3... h6 {[%clk 0:03:00.7]}
4. Bxf6 {[%clk 0:03:04]} 4... Qxf6 {[%clk 0:03:02.6]} 5. c3 {[%clk 0:03:05.5]}
5... d6 {[%clk 0:03:02.8]} 6. Bd3 {[%clk 0:03:06.1]} 6... Bd7 {[%clk 0:03:00.2]}
7. Ne2 {[%clk 0:03:07.2]} 7... Nc6 {[%clk 0:03:00]} 8. O-O {[%clk 0:03:06.6]}
8... e5 {[%clk 0:03:01.1]} 9. Na3 {[%clk 0:02:57]} 9... g5 {[%clk 0:02:52.5]}
10. Nb5 {[%clk 0:02:51.4]} 10... Qd8 {[%clk 0:02:44.3]} 11. Bc4 {[%clk
0:02:45.4]} 11... a6 {[%clk 0:02:40]} 12. Na3 {[%clk 0:02:46.1]} 12... h5 {[%clk
0:02:26.7]} 13. Nc2 {[%clk 0:02:35.5]} 13... Qf6 {[%clk 0:02:15.3]} 14. Ne3
{[%clk 0:02:31.9]} 14... Ne7 {[%clk 0:02:16.2]} 15. Ng3 {[%clk 0:02:18.2]} 15...
exd4 {[%clk 0:02:02.6]} 16. cxd4 {[%clk 0:02:14.2]} 16... Bg7 {[%clk 0:02:02.8]}
17. e5 {[%clk 0:01:52]} 17... dxe5 {[%clk 0:01:34.1]} 18. dxe5 {[%clk
0:01:53.9]} 18... Qxe5 {[%clk 0:01:35.3]} 19. Re1 {[%clk 0:01:54.5]} 19... O-O-O
{[%clk 0:00:09.2]} 20. Nd5 {[%clk 0:01:50.2]} 20... Qxb2 {[%clk 0:00:09.4]} 21.
Rb1 {[%clk 0:01:48.9]} 21... Qa3 {[%clk 0:00:07]} 22. Nxe7+ {[%clk 0:01:42.9]}
22... Kb8 {[%clk 0:00:07.7]} 23. Rb3 {[%clk 0:01:43.7]} 23... Qc5 {[%clk
0:00:06.4]} 24. Bxa6 {[%clk 0:01:40.7]} 24... b6 {[%clk 0:00:06.5]} 25. Rd3
{[%clk 0:01:39.8]} 1-0

[Event "*** Titled Tuesday Blitz"]
[Site "Chess.com"]
[Date "2018.11.06"]
[Round "10"]
[White "CarlssonLudvig"]
[Black "Quiet_Desperation"]
[Result "1-0"]
[WhiteElo "2286"]
[BlackElo "2325"]
[TimeControl "180+2"]
[EndTime "15:17:47 PST"]
[Termination "CarlssonLudvig won by resignation"]

1. e4 {[%clk 0:03:01.9]} 1... Nc6 {[%clk 0:03:01.2]} 2. Nf3 {[%clk 0:03:01.8]}
2... d6 {[%clk 0:03:02.4]} 3. d4 {[%clk 0:02:55.4]} 3... Nf6 {[%clk 0:03:03.5]}
4. Bd3 {[%clk 0:02:51]} 4... e5 {[%clk 0:03:04]} 5. c3 {[%clk 0:02:50.6]} 5...
Bg4 {[%clk 0:03:04.4]} 6. Be3 {[%clk 0:02:46.3]} 6... Be7 {[%clk 0:03:04.9]} 7.
O-O {[%clk 0:02:47]} 7... O-O {[%clk 0:03:05.7]} 8. Re1 {[%clk 0:02:41.2]} 8...
Re8 {[%clk 0:03:01.9]} 9. Nbd2 {[%clk 0:02:41.1]} 9... a6 {[%clk 0:03:02.8]} 10.
h3 {[%clk 0:02:39.1]} 10... Bh5 {[%clk 0:03:03]} 11. Nf1 {[%clk 0:02:40.3]}
11... Bg6 {[%clk 0:03:03]} 12. Ng3 {[%clk 0:02:41.1]} 12... exd4 {[%clk
0:03:01.7]} 13. cxd4 {[%clk 0:02:41.8]} 13... Nb4 {[%clk 0:02:51.4]} 14. Bb1
{[%clk 0:02:29.9]} 14... c5 {[%clk 0:02:52.4]} 15. d5 {[%clk 0:02:26.1]} 15...
a5 {[%clk 0:02:47.6]} 16. Nh4 {[%clk 0:02:13.6]} 16... b5 {[%clk 0:02:14]} 17.
Nhf5 {[%clk 0:02:12.5]} 17... a4 {[%clk 0:02:15.3]} 18. h4 {[%clk 0:02:02.3]}
18... Bf8 {[%clk 0:02:12.7]} 19. h5 {[%clk 0:01:56.4]} 19... Bxf5 {[%clk
0:02:13.6]} 20. Nxf5 {[%clk 0:01:57.1]} 20... Rxe4 {[%clk 0:02:07]} 21. Bxe4
{[%clk 0:01:55]} 21... Nxe4 {[%clk 0:02:06]} 22. Qg4 {[%clk 0:01:56.3]} 22...
Nf6 {[%clk 0:02:06]} 23. Nh6+ {[%clk 0:01:57.4]} 23... Kh8 {[%clk 0:02:07.3]}
24. Nxf7+ {[%clk 0:01:58.6]} 24... Kg8 {[%clk 0:02:08.5]} 25. Nh6+ {[%clk
0:01:54.5]} 25... Kh8 {[%clk 0:02:09.5]} 26. Nf7+ {[%clk 0:01:51.5]} 26... Kg8
{[%clk 0:02:10.2]} 27. Qxb4 {[%clk 0:01:49.1]} 27... cxb4 {[%clk 0:02:09.6]} 28.
Nxd8 {[%clk 0:01:49.6]} 28... Rxd8 {[%clk 0:02:09.3]} 29. Bg5 {[%clk 0:01:49.2]}
29... Kf7 {[%clk 0:02:06.5]} 30. Bxf6 {[%clk 0:01:49.7]} 30... Kxf6 {[%clk
0:02:07.4]} 31. f3 {[%clk 0:01:47.6]} 31... Kf7 {[%clk 0:02:03.3]} 32. Rac1
{[%clk 0:01:47]} 32... Rd7 {[%clk 0:02:02.7]} 33. Rc6 {[%clk 0:01:45.1]} 33...
Be7 {[%clk 0:02:02.9]} 34. Rb6 {[%clk 0:01:46.2]} 34... Bf6 {[%clk 0:01:55.6]}
35. Rxb5 {[%clk 0:01:45.2]} 35... Bxb2 {[%clk 0:01:56.6]} 36. Rxb4 {[%clk
0:01:45.8]} 36... Bc3 {[%clk 0:01:57.8]} 37. Rf4+ {[%clk 0:01:46.8]} 37... Bf6
{[%clk 0:01:54.9]} 38. Rxa4 {[%clk 0:01:45.7]} 38... Rc7 {[%clk 0:01:55.8]} 39.
g4 {[%clk 0:01:42.6]} 39... h6 {[%clk 0:01:55.5]} 40. Rae4 {[%clk 0:01:39.6]}
40... Be5 {[%clk 0:01:54.8]} 41. Rxe5 {[%clk 0:01:39.3]} 41... dxe5 {[%clk
0:01:55.9]} 42. Rxe5 {[%clk 0:01:41.2]} 42... Rc2 {[%clk 0:01:54.7]} 43. a4
{[%clk 0:01:36.5]} 43... Ra2 {[%clk 0:01:53.5]} 44. Re4 {[%clk 0:01:36.5]} 44...
Rd2 {[%clk 0:01:53.9]} 45. a5 {[%clk 0:01:35.4]} 45... Rxd5 {[%clk 0:01:54.8]}
46. Ra4 {[%clk 0:01:36.9]} 46... Rd7 {[%clk 0:01:51.4]} 47. a6 {[%clk
0:01:37.7]} 47... Ra7 {[%clk 0:01:53.3]} 48. Kf2 {[%clk 0:01:38.5]} 48... Ke6
{[%clk 0:01:55.2]} 49. Ra5 {[%clk 0:01:39.5]} 49... Kd6 {[%clk 0:01:56.4]} 50.
Ke3 {[%clk 0:01:40.8]} 50... Kc6 {[%clk 0:01:57.3]} 51. Kf4 {[%clk 0:01:42.3]}
51... Kb6 {[%clk 0:01:59.2]} 52. Ra1 {[%clk 0:01:42.3]} 52... Kc6 {[%clk
0:01:59.4]} 53. Kf5 {[%clk 0:01:43.5]} 53... Kb6 {[%clk 0:02:00.2]} 54. Kg6
{[%clk 0:01:45]} 54... Kc6 {[%clk 0:02:01.5]} 55. f4 {[%clk 0:01:43.1]} 55...
Kb6 {[%clk 0:02:02.6]} 56. g5 {[%clk 0:01:43.7]} 56... hxg5 {[%clk 0:02:03.9]}
57. fxg5 {[%clk 0:01:45.2]} 57... Kc6 {[%clk 0:02:05.2]} 58. h6 {[%clk
0:01:46.7]} 58... gxh6 {[%clk 0:02:07]} 59. gxh6 {[%clk 0:01:48.6]} 59... Kb6
{[%clk 0:02:08.2]} 60. h7 {[%clk 0:01:50.1]} 1-0

[Event "*** Titled Tuesday Blitz"]
[Site "Chess.com"]
[Date "2018.11.06"]
[Round "10"]
[White "juniortay"]
[Black "AttackSparrow"]
[Result "1-0"]
[WhiteElo "2372"]
[BlackElo "2209"]
[TimeControl "180+2"]
[EndTime "15:17:52 PST"]
[Termination "juniortay won by resignation"]

1. e4 {[%clk 0:03:01.9]} 1... c5 {[%clk 0:03:00.6]} 2. Nf3 {[%clk 0:03:01.9]}
2... d6 {[%clk 0:03:01.1]} 3. d4 {[%clk 0:03:02.9]} 3... cxd4 {[%clk 0:03:03]}
4. Qxd4 {[%clk 0:03:04.2]} 4... Nc6 {[%clk 0:03:02.2]} 5. Bb5 {[%clk 0:03:03.8]}
5... a6 {[%clk 0:03:03.6]} 6. Bxc6+ {[%clk 0:03:04.6]} 6... bxc6 {[%clk
0:03:05.5]} 7. c4 {[%clk 0:03:03.4]} 7... e5 {[%clk 0:03:06.4]} 8. Qd3 {[%clk
0:03:03.6]} 8... Be7 {[%clk 0:03:07.7]} 9. Nc3 {[%clk 0:03:04.6]} 9... Nf6
{[%clk 0:03:03.6]} 10. Bg5 {[%clk 0:03:04.5]} 10... O-O {[%clk 0:03:04.4]} 11.
O-O {[%clk 0:03:05]} 11... Qc7 {[%clk 0:03:03.5]} 12. Rfd1 {[%clk 0:02:55.7]}
12... Rd8 {[%clk 0:02:59.3]} 13. Rab1 {[%clk 0:02:49.5]} 13... Bg4 {[%clk
0:02:59.2]} 14. h3 {[%clk 0:02:49.6]} 14... Bh5 {[%clk 0:02:59.4]} 15. b4 {[%clk
0:02:46.9]} 15... Rab8 {[%clk 0:02:56.2]} 16. a4 {[%clk 0:02:46.5]} 16... h6
{[%clk 0:02:51.3]} 17. Bh4 {[%clk 0:02:43.8]} 17... Qa7 {[%clk 0:02:36]} 18. g4
{[%clk 0:02:29.5]} 18... Bg6 {[%clk 0:02:36]} 19. Qe2 {[%clk 0:02:31]} 19... a5
{[%clk 0:02:28.1]} 20. b5 {[%clk 0:02:29.9]} 20... Qc5 {[%clk 0:02:28.7]} 21.
Bxf6 {[%clk 0:02:06.8]} 21... Bxf6 {[%clk 0:02:26.6]} 22. bxc6 {[%clk
0:02:08.3]} 22... Be7 {[%clk 0:02:20.6]} 23. Nd5 {[%clk 0:02:06.4]} 23... Rxb1
{[%clk 0:02:15.8]} 24. Rxb1 {[%clk 0:02:03.3]} 24... Bf8 {[%clk 0:02:08.9]} 25.
c7 {[%clk 0:02:03.2]} 25... Rc8 {[%clk 0:02:10]} 26. Rb8 {[%clk 0:02:01.6]}
26... Rxc7 {[%clk 0:02:09.5]} 27. Nxc7 {[%clk 0:02:01.9]} 27... Qxc7 {[%clk
0:02:11.4]} 28. Rb5 {[%clk 0:01:37.9]} 28... Qc6 {[%clk 0:02:04.4]} 29. Nd2
{[%clk 0:01:32.3]} 29... Qc7 {[%clk 0:01:58]} 30. Qd3 {[%clk 0:01:27.1]} 30...
Be7 {[%clk 0:01:57.7]} 31. Qd5 {[%clk 0:01:17.9]} 31... h5 {[%clk 0:01:54.4]}
32. Qb7 {[%clk 0:01:10.1]} 32... Qxb7 {[%clk 0:01:41]} 33. Rxb7 {[%clk 0:01:12]}
33... Bg5 {[%clk 0:01:42.1]} 34. Nf3 {[%clk 0:01:01.9]} 34... Be7 {[%clk
0:01:32.9]} 35. Rxe7 {[%clk 0:01:00.9]} 35... Bxe4 {[%clk 0:01:21.3]} 36. Re8+
{[%clk 0:00:59.2]} 1-0

[Event "*** Titled Tuesday Blitz"]
[Site "Chess.com"]
[Date "2018.11.06"]
[Round "10"]
[White "MatyChess1"]
[Black "bascheyaro"]
[Result "1-0"]
[WhiteElo "2541"]
[BlackElo "2688"]
[TimeControl "180+2"]
[EndTime "15:17:54 PST"]
[Termination "MatyChess1 won by resignation"]

1. e4 {[%clk 0:03:01.9]} 1... e6 {[%clk 0:02:57.2]} 2. d3 {[%clk 0:03:02.3]}
2... d5 {[%clk 0:02:58.5]} 3. Qe2 {[%clk 0:03:03.8]} 3... Nf6 {[%clk 0:02:59.4]}
4. Nf3 {[%clk 0:03:04.1]} 4... c5 {[%clk 0:03:00.8]} 5. g3 {[%clk 0:03:04.3]}
5... Nc6 {[%clk 0:03:02.3]} 6. Bg2 {[%clk 0:03:05.3]} 6... g6 {[%clk 0:03:03.9]}
7. O-O {[%clk 0:02:57.6]} 7... Bg7 {[%clk 0:03:05.2]} 8. e5 {[%clk 0:02:54.2]}
8... Nd7 {[%clk 0:03:06.1]} 9. Bf4 {[%clk 0:02:55.3]} 9... h6 {[%clk 0:03:06.7]}
10. h4 {[%clk 0:02:56.8]} 10... Qb6 {[%clk 0:03:02.4]} 11. c4 {[%clk 0:02:42.2]}
11... dxc4 {[%clk 0:02:44.9]} 12. dxc4 {[%clk 0:02:42.7]} 12... g5 {[%clk
0:02:45.5]} 13. hxg5 {[%clk 0:02:41.9]} 13... hxg5 {[%clk 0:02:46.5]} 14. Bxg5
{[%clk 0:02:38]} 14... Ndxe5 {[%clk 0:02:46.7]} 15. Nxe5 {[%clk 0:02:06.6]}
15... Nxe5 {[%clk 0:02:41.6]} 16. Nc3 {[%clk 0:02:03.7]} 16... Bd7 {[%clk
0:02:42.1]} 17. Ne4 {[%clk 0:01:53.3]} 17... Ng6 {[%clk 0:02:12.3]} 18. Nf6+
{[%clk 0:01:45.3]} 18... Bxf6 {[%clk 0:02:13.2]} 19. Bxf6 {[%clk 0:01:47.2]}
19... Rh6 {[%clk 0:02:14.5]} 20. Qd2 {[%clk 0:01:39.5]} 20... Rh5 {[%clk
0:02:14.4]} 21. Rad1 {[%clk 0:01:39.3]} 21... Qc7 {[%clk 0:02:11.5]} 22. Be4
{[%clk 0:01:16.4]} 22... Bc6 {[%clk 0:02:11.5]} 23. Bxc6+ {[%clk 0:01:16.5]}
23... bxc6 {[%clk 0:02:13.3]} 24. Qe3 {[%clk 0:01:11.4]} 24... Rf5 {[%clk
0:02:09.6]} 25. Bc3 {[%clk 0:01:08]} 25... e5 {[%clk 0:02:06.1]} 26. Qxc5 {[%clk
0:01:03.6]} 26... Rc8 {[%clk 0:02:01.2]} 27. Rd6 {[%clk 0:01:02.7]} 27... Qe7
{[%clk 0:01:59.4]} 28. Rfd1 {[%clk 0:01:02.5]} 28... Rh5 {[%clk 0:01:45.9]} 29.
Ba5 {[%clk 0:00:39.8]} 29... Kf8 {[%clk 0:01:36.1]} 30. Bb4 {[%clk 0:00:31.5]}
30... Ke8 {[%clk 0:01:33.7]} 31. Rxg6 {[%clk 0:00:24.6]} 1-0

[Event "*** Titled Tuesday Blitz"]
[Site "Chess.com"]
[Date "2018.11.06"]
[Round "10"]
[White "santosalberto1987"]
[Black "woodhy"]
[Result "0-1"]
[WhiteElo "2398"]
[BlackElo "2440"]
[TimeControl "180+2"]
[EndTime "15:17:59 PST"]
[Termination "woodhy won by resignation"]

1. e4 {[%clk 0:03:01.9]} 1... e6 {[%clk 0:02:59.9]} 2. d4 {[%clk 0:03:02.5]}
2... d5 {[%clk 0:03:01.8]} 3. Nc3 {[%clk 0:03:03.7]} 3... Bb4 {[%clk 0:03:02.3]}
4. e5 {[%clk 0:03:05]} 4... c5 {[%clk 0:03:02.7]} 5. a3 {[%clk 0:03:05.7]} 5...
Bxc3+ {[%clk 0:03:04.1]} 6. bxc3 {[%clk 0:03:07.4]} 6... Ne7 {[%clk 0:03:05.9]}
7. Nf3 {[%clk 0:03:08.5]} 7... b6 {[%clk 0:03:06.2]} 8. a4 {[%clk 0:03:08.6]}
8... Ba6 {[%clk 0:03:06.5]} 9. Bb5+ {[%clk 0:03:08.1]} 9... Bxb5 {[%clk
0:03:07]} 10. axb5 {[%clk 0:03:09]} 10... Qd7 {[%clk 0:03:06.5]} 11. Rb1 {[%clk
0:03:09]} 11... O-O {[%clk 0:03:05.9]} 12. O-O {[%clk 0:03:09.7]} 12... a6
{[%clk 0:03:07.3]} 13. Qe2 {[%clk 0:03:00.2]} 13... Qc7 {[%clk 0:02:57.7]} 14.
Bg5 {[%clk 0:02:58]} 14... h6 {[%clk 0:02:56.2]} 15. Bxe7 {[%clk 0:02:27.2]}
15... Qxe7 {[%clk 0:02:58.1]} 16. bxa6 {[%clk 0:02:28.5]} 16... Rxa6 {[%clk
0:02:56.1]} 17. Rb3 {[%clk 0:02:23.8]} 17... c4 {[%clk 0:02:50.3]} 18. Rb2
{[%clk 0:02:23.1]} 18... Nc6 {[%clk 0:02:50]} 19. Rfb1 {[%clk 0:02:23.3]} 19...
Qc7 {[%clk 0:02:51.5]} 20. h4 {[%clk 0:02:19.3]} 20... Rfa8 {[%clk 0:02:52.8]}
21. Nh2 {[%clk 0:02:15.6]} 21... Ra1 {[%clk 0:02:53.1]} 22. Ng4 {[%clk
0:02:15.1]} 22... Rxb1+ {[%clk 0:02:52.3]} 23. Rxb1 {[%clk 0:02:16.7]} 23... Qb7
{[%clk 0:02:47.5]} 24. h5 {[%clk 0:02:12.9]} 24... b5 {[%clk 0:02:48.4]} 25. f4
{[%clk 0:01:59.7]} 25... Ra3 {[%clk 0:02:46.5]} 26. f5 {[%clk 0:01:38.5]} 26...
exf5 {[%clk 0:02:44.4]} 27. Ne3 {[%clk 0:01:39.7]} 27... Ne7 {[%clk 0:02:42.2]}
28. Qd2 {[%clk 0:01:25.2]} 28... f4 {[%clk 0:02:41.6]} 29. Ng4 {[%clk
0:01:23.2]} 29... Qd7 {[%clk 0:02:42]} 30. Qxf4 {[%clk 0:01:23]} 30... Rxc3
{[%clk 0:02:41.2]} 31. Ra1 {[%clk 0:01:06.7]} 31... Qf5 {[%clk 0:02:37.3]} 32.
Nxh6+ {[%clk 0:00:24.8]} 32... gxh6 {[%clk 0:02:33.4]} 33. Qxh6 {[%clk
0:00:26.5]} 33... Rxc2 {[%clk 0:02:04.7]} 34. Ra8+ {[%clk 0:00:25.3]} 34... Nc8
{[%clk 0:02:04.4]} 35. Rxc8+ {[%clk 0:00:17.9]} 35... Qxc8 {[%clk 0:02:06.3]}
36. Qg5+ {[%clk 0:00:19.1]} 36... Kf8 {[%clk 0:02:06]} 37. Qh6+ {[%clk
0:00:19.4]} 37... Ke8 {[%clk 0:02:05.3]} 0-1